[Event "Titled Tuesday Blitz November 15 Early 2022"]
[White "Aradhya, Garg"]
[Black "Salinas Herrera, Pablo"]
[WhiteFideId "25006746"]
[BlackFideId "3407128"]
[WhiteElo "2223"]
[BlackElo "2557"]
[Result "1-0"]
[Round "11"]
[TimeControl "180+1"]
[Date "2022.11.15"]
[WhiteClock "0:00:29"]
[BlackClock "0:00:02"]

1. d4 {[%clk 0:03:00]}  d5 {[%clk 0:02:59]} 2. c4 {[%clk 0:03:01]}  e6 {[%clk 0:03:00]} 3. Nc3 {[%clk 0:03:01]}  Nf6 {[%clk 0:03:00]} 4. cxd5 {[%clk 0:03:01]}  exd5 {[%clk 0:03:01]} 5. Bg5 {[%clk 0:03:01]}  c6 {[%clk 0:03:02]} 6. e3 {[%clk 0:03:01]}  h6 {[%clk 0:03:03]} 7. Bh4 {[%clk 0:03:01]}  Bd6 {[%clk 0:03:03]} 8. Bd3 {[%clk 0:03:00]}  O-O {[%clk 0:03:04]} 9. Nge2 {[%clk 0:03:00]}  Re8 {[%clk 0:03:03]} 10. Qc2 {[%clk 0:03:00]}  a5 {[%clk 0:03:03]} 11. h3 {[%clk 0:02:56]}  Na6 {[%clk 0:03:03]} 12. a3 {[%clk 0:02:56]}  Nc7 {[%clk 0:03:03]} 13. g4 {[%clk 0:02:48]}  Ne6 {[%clk 0:02:53]} 14. O-O-O {[%clk 0:02:42]}  b5 {[%clk 0:02:53]} 15. f4 {[%clk 0:02:41]}  b4 {[%clk 0:02:47]} 16. g5 {[%clk 0:02:39]}  hxg5 {[%clk 0:01:56]} 17. fxg5 {[%clk 0:02:39]}  Nd7 {[%clk 0:01:56]} 18. Na4 {[%clk 0:02:24]}  bxa3 {[%clk 0:01:56]} 19. g6 {[%clk 0:02:23]}  Qxh4 {[%clk 0:01:19]} 20. gxf7+ {[%clk 0:02:22]}  Kxf7 {[%clk 0:01:20]} 21. Bg6+ {[%clk 0:02:23]}  Ke7 {[%clk 0:01:20]} 22. Bxe8 {[%clk 0:02:24]}  a2 {[%clk 0:01:20]} 23. Kd2 {[%clk 0:02:23]}  Bb4+ {[%clk 0:01:15]} 24. Nac3 {[%clk 0:02:22]}  Kxe8 {[%clk 0:01:04]} 25. Qg6+ {[%clk 0:02:13]}  Ke7 {[%clk 0:01:04]} 26. Rhf1 {[%clk 0:02:13]}  Nf6 {[%clk 0:01:05]} 27. Nf4 {[%clk 0:02:13]}  Qh6 {[%clk 0:00:17]} 28. Qxh6 {[%clk 0:02:10]}  gxh6 {[%clk 0:00:18]} 29. Ng6+ {[%clk 0:02:11]}  Kf7 {[%clk 0:00:16]} 30. Ne5+ {[%clk 0:02:11]}  Kg7 {[%clk 0:00:16]} 31. Rg1+ {[%clk 0:02:07]}  Kh7 {[%clk 0:00:16]} 32. Rdf1 {[%clk 0:02:05]}  Ne4+ {[%clk 0:00:16]} 33. Kc2 {[%clk 0:02:06]}  N6g5 {[%clk 0:00:13]} 34. h4 {[%clk 0:02:05]}  a1=Q {[%clk 0:00:05]} 35. Rxa1 {[%clk 0:02:03]}  Bf5 {[%clk 0:00:06]} 36. Raf1 {[%clk 0:01:39]}  Ng3+ {[%clk 0:00:04]} 37. Rxf5 {[%clk 0:01:38]}  Nxf5 {[%clk 0:00:05]} 38. hxg5 {[%clk 0:01:38]}  Nxe3+ {[%clk 0:00:05]} 39. Kd3 {[%clk 0:01:38]}  Nf5 {[%clk 0:00:05]} 40. Rf1 {[%clk 0:01:30]}  Nd6 {[%clk 0:00:03]} 41. gxh6 {[%clk 0:01:11]}  Kxh6 {[%clk 0:00:03]} 42. Nxc6 {[%clk 0:01:10]}  Bxc3 {[%clk 0:00:01]} 43. Rf6+ {[%clk 0:01:06]}  Kg5 {[%clk 0:00:01]} 44. Rxd6 {[%clk 0:01:05]}  Bxb2 {[%clk 0:00:02]} 45. Rxd5+ {[%clk 0:01:05]}  Kf6 {[%clk 0:00:03]} 46. Nxa5 {[%clk 0:01:04]}  Ke6 {[%clk 0:00:01]} 47. Re5+ {[%clk 0:01:03]}  Kd7 {[%clk 0:00:01]} 48. Nc4 {[%clk 0:01:03]}  Ba1 {[%clk 0:00:02]} 49. Rh5 {[%clk 0:01:02]}  Re8 {[%clk 0:00:02]} 50. d5 {[%clk 0:01:02]}  Re7 {[%clk 0:00:02]} 51. Rh6 {[%clk 0:01:00]}  Rg7 {[%clk 0:00:02]} 52. Rd6+ {[%clk 0:00:59]}  Kc7 {[%clk 0:00:02]} 53. Rc6+ {[%clk 0:00:59]}  Kd8 {[%clk 0:00:03]} 54. Ra6 {[%clk 0:00:54]}  Rg3+ {[%clk 0:00:01]} 55. Ke2 {[%clk 0:00:54]}  Rg1 {[%clk 0:00:01]} 56. Ra8+ {[%clk 0:00:48]}  Kd7 {[%clk 0:00:01]} 57. Ra7+ {[%clk 0:00:46]}  Kd8 {[%clk 0:00:02]} 58. Na5 {[%clk 0:00:37]}  Bd4 {[%clk 0:00:02]} 59. Nc6+ {[%clk 0:00:37]}  Kc8 {[%clk 0:00:02]} 60. Nxd4 {[%clk 0:00:36]}  Rg5 {[%clk 0:00:03]} 61. d6 {[%clk 0:00:30]}  Rd5 {[%clk 0:00:02]} 62. Rc7+ {[%clk 0:00:29]} 1-0


[Site "https://www.chess.com"]

[Event "Titled Tuesday Blitz November 15 Early 2022"]
[White "Arbunic Castro, Giovanna"]
[Black "Gerbelli Neto, Eduardo"]
[WhiteFideId "3400549"]
[BlackFideId "2103281"]
[WhiteElo "1925"]
[BlackElo "2178"]
[Result "0-1"]
[Round "11"]
[TimeControl "180+1"]
[Date "2022.11.16"]
[WhiteClock "0:00:02"]
[BlackClock "0:00:05"]

1. e4 {[%clk 0:02:58]}  e5 {[%clk 0:02:58]} 2. d4 {[%clk 0:02:56]}  exd4 {[%clk 0:02:58]} 3. Qxd4 {[%clk 0:02:55]}  Nc6 {[%clk 0:02:58]} 4. Qe3 {[%clk 0:02:54]}  g6 {[%clk 0:02:58]} 5. Nc3 {[%clk 0:02:54]}  Bg7 {[%clk 0:02:59]} 6. Bd2 {[%clk 0:02:53]}  Nf6 {[%clk 0:02:59]} 7. O-O-O {[%clk 0:02:51]}  O-O {[%clk 0:03:00]} 8. Bc4 {[%clk 0:02:44]}  Ne5 {[%clk 0:02:53]} 9. Bb3 {[%clk 0:02:43]}  d6 {[%clk 0:02:53]} 10. f4 {[%clk 0:02:41]}  Neg4 {[%clk 0:02:48]} 11. Qg3 {[%clk 0:02:37]}  c6 {[%clk 0:02:23]} 12. h3 {[%clk 0:02:35]}  Nh6 {[%clk 0:02:22]} 13. Qf3 {[%clk 0:02:31]}  Kh8 {[%clk 0:02:08]} 14. g4 {[%clk 0:02:28]}  Nhg8 {[%clk 0:02:08]} 15. e5 {[%clk 0:02:20]}  dxe5 {[%clk 0:02:02]} 16. fxe5 {[%clk 0:02:19]}  Nd5 {[%clk 0:02:01]} 17. Nxd5 {[%clk 0:01:55]}  cxd5 {[%clk 0:02:02]} 18. Bxd5 {[%clk 0:01:55]}  Be6 {[%clk 0:01:51]} 19. Bc3 {[%clk 0:01:45]}  Qg5+ {[%clk 0:01:48]} 20. Kb1 {[%clk 0:01:40]}  Rad8 {[%clk 0:01:46]} 21. Ne2 {[%clk 0:01:33]}  Bxd5 {[%clk 0:01:35]} 22. Rxd5 {[%clk 0:01:30]}  Rxd5 {[%clk 0:01:35]} 23. Qxd5 {[%clk 0:01:29]}  b6 {[%clk 0:01:25]} 24. Rd1 {[%clk 0:01:16]}  Qe3 {[%clk 0:01:11]} 25. Qd3 {[%clk 0:00:56]}  Qxd3 {[%clk 0:01:05]} 26. Rxd3 {[%clk 0:00:51]}  Ne7 {[%clk 0:01:01]} 27. Rd7 {[%clk 0:00:48]}  Nc6 {[%clk 0:01:00]} 28. Rc7 {[%clk 0:00:33]}  Nxe5 {[%clk 0:01:00]} 29. Rxa7 {[%clk 0:00:31]}  Kg8 {[%clk 0:00:46]} 30. Rb7 {[%clk 0:00:25]}  Nc4 {[%clk 0:00:45]} 31. Bxg7 {[%clk 0:00:20]}  Kxg7 {[%clk 0:00:46]} 32. b3 {[%clk 0:00:20]}  Re8 {[%clk 0:00:33]} 33. bxc4 {[%clk 0:00:18]}  Rxe2 {[%clk 0:00:33]} 34. Rxb6 {[%clk 0:00:18]}  Re4 {[%clk 0:00:30]} 35. c5 {[%clk 0:00:17]}  Rc4 {[%clk 0:00:23]} 36. c6 {[%clk 0:00:16]}  Rc3 {[%clk 0:00:23]} 37. Kb2 {[%clk 0:00:14]}  Rc5 {[%clk 0:00:20]} 38. Kb3 {[%clk 0:00:13]}  h5 {[%clk 0:00:18]} 39. c4 {[%clk 0:00:13]}  hxg4 {[%clk 0:00:12]} 40. hxg4 {[%clk 0:00:12]}  f5 {[%clk 0:00:11]} 41. gxf5 {[%clk 0:00:11]}  gxf5 {[%clk 0:00:08]} 42. Kb4 {[%clk 0:00:10]}  Re5 {[%clk 0:00:07]} 43. c7 {[%clk 0:00:09]}  Re8 {[%clk 0:00:08]} 44. Rb8 {[%clk 0:00:09]}  f4 {[%clk 0:00:05]} 45. Rxe8 {[%clk 0:00:08]}  f3 {[%clk 0:00:05]} 46. c8=Q {[%clk 0:00:07]}  f2 {[%clk 0:00:06]} 47. Qf5 {[%clk 0:00:02]}  f1=Q {[%clk 0:00:05]} 0-1


[Site "https://www.chess.com"]

[Event "Titled Tuesday Blitz November 15 Early 2022"]
[White "Artemenko, Oleg"]
[Black "D`Arruda, Ricardo D."]
[WhiteFideId "14201798"]
[BlackFideId "100692"]
[WhiteElo "2287"]
[BlackElo "2497"]
[Result "1-0"]
[Round "11"]
[TimeControl "180+1"]
[Date "2022.11.16"]
[WhiteClock "0:01:30"]
[BlackClock "0:01:30"]

1. e4 {[%clk 0:03:00]}  c5 {[%clk 0:02:59]} 2. Nc3 {[%clk 0:02:59]}  e6 {[%clk 0:02:57]} 3. Nf3 {[%clk 0:02:57]}  d6 {[%clk 0:02:56]} 4. d4 {[%clk 0:02:55]}  cxd4 {[%clk 0:02:57]} 5. Qxd4 {[%clk 0:02:55]}  Nc6 {[%clk 0:02:56]} 6. Bb5 {[%clk 0:02:54]}  Nf6 {[%clk 0:02:55]} 7. Bg5 {[%clk 0:02:53]}  Be7 {[%clk 0:02:53]} 8. O-O-O {[%clk 0:02:48]}  O-O {[%clk 0:02:48]} 9. Bxc6 {[%clk 0:02:44]}  bxc6 {[%clk 0:02:48]} 10. e5 {[%clk 0:02:44]}  Nd5 {[%clk 0:02:34]} 11. Bxe7 {[%clk 0:02:41]}  Qxe7 {[%clk 0:02:35]} 12. Ne4 {[%clk 0:02:34]}  dxe5 {[%clk 0:02:33]} 13. Nxe5 {[%clk 0:02:31]}  Bb7 {[%clk 0:02:23]} 14. c4 {[%clk 0:02:30]}  Nb6 {[%clk 0:02:17]} 15. Qd6 {[%clk 0:02:26]}  Qh4 {[%clk 0:02:08]} 16. g4 {[%clk 0:02:11]}  c5 {[%clk 0:02:03]} 17. f3 {[%clk 0:02:00]}  Bxe4 {[%clk 0:01:57]} 18. fxe4 {[%clk 0:02:01]}  f6 {[%clk 0:01:32]} 19. Qxe6+ {[%clk 0:01:58]}  Kh8 {[%clk 0:01:32]} 20. Nf7+ {[%clk 0:01:57]}  Rxf7 {[%clk 0:01:33]} 21. Qxf7 {[%clk 0:01:56]}  Qxg4 {[%clk 0:01:31]} 22. Rhg1 {[%clk 0:01:51]}  Qf4+ {[%clk 0:01:30]} 23. Kb1 {[%clk 0:01:48]}  Qxe4+ {[%clk 0:01:30]} 24. Ka1 {[%clk 0:01:47]}  Rg8 {[%clk 0:01:30]} 25. Qxg7+ {[%clk 0:01:30]} 1-0


[Site "https://www.chess.com"]

[Event "Titled Tuesday Blitz November 15 Early 2022"]
[White "Aumann, Welf"]
[Black "Chernomordik, Pavel"]
[WhiteFideId "4634071"]
[BlackFideId "2804530"]
[WhiteElo "2291"]
[BlackElo "2192"]
[Result "1/2-1/2"]
[Round "11"]
[TimeControl "180+1"]
[Date "2022.11.16"]
[WhiteClock "0:00:09"]
[BlackClock "0:00:37"]

1. c4 {[%clk 0:03:00]}  g6 {[%clk 0:02:59]} 2. g3 {[%clk 0:03:00]}  Bg7 {[%clk 0:02:59]} 3. Bg2 {[%clk 0:03:00]}  e5 {[%clk 0:02:58]} 4. Nc3 {[%clk 0:03:01]}  Nc6 {[%clk 0:02:58]} 5. e4 {[%clk 0:03:01]}  d6 {[%clk 0:02:58]} 6. d3 {[%clk 0:02:58]}  Be6 {[%clk 0:02:56]} 7. Nge2 {[%clk 0:02:58]}  Qd7 {[%clk 0:02:55]} 8. h3 {[%clk 0:02:57]}  Nge7 {[%clk 0:02:54]} 9. Nd5 {[%clk 0:02:56]}  O-O {[%clk 0:02:48]} 10. Bh6 {[%clk 0:02:55]}  f5 {[%clk 0:02:45]} 11. Bxg7 {[%clk 0:02:54]}  Kxg7 {[%clk 0:02:45]} 12. Qd2 {[%clk 0:02:47]}  h6 {[%clk 0:02:41]} 13. f4 {[%clk 0:02:32]}  Nd8 {[%clk 0:02:35]} 14. O-O {[%clk 0:02:21]}  c6 {[%clk 0:02:34]} 15. Nxe7 {[%clk 0:02:21]}  Qxe7 {[%clk 0:02:34]} 16. exf5 {[%clk 0:02:19]}  Bxf5 {[%clk 0:02:26]} 17. d4 {[%clk 0:02:16]}  Nf7 {[%clk 0:02:18]} 18. fxe5 {[%clk 0:02:06]}  dxe5 {[%clk 0:02:17]} 19. g4 {[%clk 0:01:58]}  Be6 {[%clk 0:02:12]} 20. d5 {[%clk 0:01:58]}  cxd5 {[%clk 0:02:07]} 21. cxd5 {[%clk 0:01:58]}  Bd7 {[%clk 0:02:04]} 22. Nc3 {[%clk 0:01:55]}  Nd6 {[%clk 0:02:02]} 23. Rxf8 {[%clk 0:01:29]}  Rxf8 {[%clk 0:02:01]} 24. Re1 {[%clk 0:01:30]}  Nc4 {[%clk 0:01:58]} 25. d6 {[%clk 0:00:43]}  Qh4 {[%clk 0:01:31]} 26. Qe2 {[%clk 0:00:31]}  Nxd6 {[%clk 0:01:15]} 27. Qxe5+ {[%clk 0:00:30]}  Kh7 {[%clk 0:01:09]} 28. Rd1 {[%clk 0:00:15]}  Qf2+ {[%clk 0:01:08]} 29. Kh1 {[%clk 0:00:14]}  Nf7 {[%clk 0:00:48]} 30. Rxd7 {[%clk 0:00:12]}  Kg8 {[%clk 0:00:47]} 31. Bd5 {[%clk 0:00:07]}  Qf1+ {[%clk 0:00:38]} 32. Kh2 {[%clk 0:00:08]}  Qf2+ {[%clk 0:00:38]} 33. Kh1 {[%clk 0:00:09]}  Qf1+ {[%clk 0:00:37]} 34. Kh2 {[%clk 0:00:09]}  Qf2+ {[%clk 0:00:37]} 35. Kh1 {[%clk 0:00:09]} 1/2-1/2


[Site "https://www.chess.com"]

[Event "Titled Tuesday Blitz November 15 Early 2022"]
[White "Begunov, Konstantin"]
[Black "Kouskoutis, Georgios-Alexandros"]
[WhiteFideId "4118510"]
[BlackFideId "4234049"]
[WhiteElo "2140"]
[BlackElo "2187"]
[Result "0-1"]
[Round "11"]
[TimeControl "180+1"]
[Date "2022.11.16"]
[WhiteClock "0:01:04"]
[BlackClock "0:00:46"]

1. d4 {[%clk 0:03:00]}  Nf6 {[%clk 0:02:59]} 2. c4 {[%clk 0:03:00]}  e6 {[%clk 0:02:59]} 3. Nf3 {[%clk 0:02:59]}  c5 {[%clk 0:02:58]} 4. Nc3 {[%clk 0:02:58]}  cxd4 {[%clk 0:02:57]} 5. Nxd4 {[%clk 0:02:59]}  d5 {[%clk 0:02:58]} 6. cxd5 {[%clk 0:02:56]}  Nxd5 {[%clk 0:02:56]} 7. g3 {[%clk 0:02:57]}  Nxc3 {[%clk 0:02:38]} 8. bxc3 {[%clk 0:02:57]}  e5 {[%clk 0:02:37]} 9. Nb5 {[%clk 0:02:37]}  Qa5 {[%clk 0:02:05]} 10. Qd5 {[%clk 0:02:21]}  Nc6 {[%clk 0:02:03]} 11. Bd2 {[%clk 0:02:19]}  Be6 {[%clk 0:01:59]} 12. c4 {[%clk 0:01:12]}  Bxd5 {[%clk 0:01:41]} 13. Bxa5 {[%clk 0:01:10]}  Bxh1 {[%clk 0:01:42]} 14. Nc7+ {[%clk 0:01:06]}  Ke7 {[%clk 0:00:47]} 15. Nd5+ {[%clk 0:01:06]}  Bxd5 {[%clk 0:00:46]} 16. cxd5 {[%clk 0:01:04]}  Nxa5 {[%clk 0:00:46]} 0-1


[Site "https://www.chess.com"]

[Event "Titled Tuesday Blitz November 15 Early 2022"]
[White "Bluebaum, Matthias"]
[Black "Bacrot, Etienne"]
[WhiteFideId "24651516"]
[BlackFideId "605506"]
[WhiteElo "2633"]
[BlackElo "2666"]
[Result "1-0"]
[Round "11"]
[TimeControl "180+1"]
[Date "2022.11.15"]
[WhiteClock "0:00:28"]
[BlackClock "0:00:06"]

1. d4 {[%clk 0:03:00]}  Nf6 {[%clk 0:02:59]} 2. c4 {[%clk 0:03:01]}  c6 {[%clk 0:02:59]} 3. Nc3 {[%clk 0:03:02]}  d5 {[%clk 0:03:00]} 4. Nf3 {[%clk 0:03:02]}  dxc4 {[%clk 0:03:00]} 5. e4 {[%clk 0:03:03]}  b5 {[%clk 0:03:00]} 6. Qc2 {[%clk 0:03:03]}  Bb7 {[%clk 0:03:00]} 7. Be2 {[%clk 0:03:03]}  e6 {[%clk 0:03:00]} 8. O-O {[%clk 0:03:04]}  Nbd7 {[%clk 0:03:01]} 9. b3 {[%clk 0:03:05]}  cxb3 {[%clk 0:03:00]} 10. axb3 {[%clk 0:03:06]}  Be7 {[%clk 0:03:00]} 11. e5 {[%clk 0:03:06]}  Nd5 {[%clk 0:03:00]} 12. Nxd5 {[%clk 0:03:06]}  exd5 {[%clk 0:02:59]} 13. Bd2 {[%clk 0:03:05]}  a5 {[%clk 0:02:58]} 14. Ne1 {[%clk 0:02:38]}  O-O {[%clk 0:02:45]} 15. Nd3 {[%clk 0:02:36]}  f6 {[%clk 0:02:20]} 16. f4 {[%clk 0:02:34]}  f5 {[%clk 0:02:20]} 17. g4 {[%clk 0:02:31]}  fxg4 {[%clk 0:02:11]} 18. Bxg4 {[%clk 0:02:31]}  Kh8 {[%clk 0:02:11]} 19. Kh1 {[%clk 0:02:30]}  a4 {[%clk 0:02:09]} 20. bxa4 {[%clk 0:02:28]}  bxa4 {[%clk 0:02:09]} 21. Rxa4 {[%clk 0:02:27]}  Rxa4 {[%clk 0:02:08]} 22. Qxa4 {[%clk 0:02:28]}  Nb6 {[%clk 0:02:08]} 23. Qa7 {[%clk 0:02:11]}  Nc4 {[%clk 0:01:33]} 24. Qxb7 {[%clk 0:02:11]}  Nxd2 {[%clk 0:01:33]} 25. Rg1 {[%clk 0:02:12]}  Qe8 {[%clk 0:01:09]} 26. f5 {[%clk 0:01:59]}  Bg5 {[%clk 0:00:56]} 27. h4 {[%clk 0:01:40]}  Be3 {[%clk 0:00:55]} 28. Rg3 {[%clk 0:01:41]}  Bh6 {[%clk 0:00:24]} 29. Rg2 {[%clk 0:01:22]}  Nc4 {[%clk 0:00:22]} 30. Nc5 {[%clk 0:00:47]}  Ne3 {[%clk 0:00:22]} 31. Ne6 {[%clk 0:00:48]}  Nxg4 {[%clk 0:00:12]} 32. Nxf8 {[%clk 0:00:43]}  Ne3 {[%clk 0:00:12]} 33. f6 {[%clk 0:00:27]}  Nxg2 {[%clk 0:00:12]} 34. e6 {[%clk 0:00:27]}  Qxf8 {[%clk 0:00:07]} 35. e7 {[%clk 0:00:26]}  Qe8 {[%clk 0:00:07]} 36. f7 {[%clk 0:00:27]}  Qxf7 {[%clk 0:00:06]} 37. Qc8+ {[%clk 0:00:27]}  Qg8 {[%clk 0:00:06]} 38. Qxg8+ {[%clk 0:00:28]} 1-0


[Site "https://www.chess.com"]

[Event "Titled Tuesday Blitz November 15 Early 2022"]
[White "Buscar, Michael"]
[Black "Smietanska, Wiktoria"]
[WhiteFideId "2603616"]
[BlackFideId "21869359"]
[WhiteElo "2010"]
[BlackElo "1695"]
[Result "0-1"]
[Round "11"]
[TimeControl "180+1"]
[Date "2022.11.16"]
[WhiteClock "0:00:10"]
[BlackClock "0:00:02"]

1. e4 {[%clk 0:03:00]}  c5 {[%clk 0:02:56]} 2. Nf3 {[%clk 0:03:00]}  d6 {[%clk 0:02:56]} 3. Bb5+ {[%clk 0:02:57]}  Nd7 {[%clk 0:02:55]} 4. O-O {[%clk 0:02:56]}  a6 {[%clk 0:02:54]} 5. Bd3 {[%clk 0:02:51]}  Ngf6 {[%clk 0:02:54]} 6. Re1 {[%clk 0:02:51]}  g6 {[%clk 0:02:53]} 7. a4 {[%clk 0:02:51]}  Bg7 {[%clk 0:02:54]} 8. c3 {[%clk 0:02:52]}  O-O {[%clk 0:02:54]} 9. Na3 {[%clk 0:02:51]}  Rb8 {[%clk 0:02:52]} 10. Nc4 {[%clk 0:02:49]}  b5 {[%clk 0:02:49]} 11. axb5 {[%clk 0:02:49]}  axb5 {[%clk 0:02:46]} 12. Ne3 {[%clk 0:02:48]}  e6 {[%clk 0:02:34]} 13. Bc2 {[%clk 0:02:37]}  d5 {[%clk 0:02:30]} 14. e5 {[%clk 0:02:27]}  Ne8 {[%clk 0:02:27]} 15. d4 {[%clk 0:02:27]}  f6 {[%clk 0:02:20]} 16. exf6 {[%clk 0:02:19]}  Ndxf6 {[%clk 0:02:21]} 17. dxc5 {[%clk 0:02:13]}  Qc7 {[%clk 0:02:04]} 18. b4 {[%clk 0:02:11]}  Ne4 {[%clk 0:01:54]} 19. Bxe4 {[%clk 0:02:02]}  dxe4 {[%clk 0:01:55]} 20. Nd4 {[%clk 0:02:02]}  Qf7 {[%clk 0:01:46]} 21. Qe2 {[%clk 0:01:54]}  Nc7 {[%clk 0:01:39]} 22. Nc6 {[%clk 0:01:21]}  Rb7 {[%clk 0:01:37]} 23. Bb2 {[%clk 0:01:19]}  Nd5 {[%clk 0:01:25]} 24. Nd4 {[%clk 0:01:01]}  Nf4 {[%clk 0:01:18]} 25. Qd2 {[%clk 0:00:46]}  Nd3 {[%clk 0:01:17]} 26. Rf1 {[%clk 0:00:46]}  e5 {[%clk 0:00:44]} 27. Ndc2 {[%clk 0:00:37]}  Nxb2 {[%clk 0:00:41]} 28. Ra8 {[%clk 0:00:33]}  Nc4 {[%clk 0:00:31]} 29. Nxc4 {[%clk 0:00:33]}  Qxc4 {[%clk 0:00:28]} 30. Ne3 {[%clk 0:00:33]}  Qf7 {[%clk 0:00:24]} 31. Qd6 {[%clk 0:00:28]}  Be6 {[%clk 0:00:20]} 32. Ra6 {[%clk 0:00:25]}  Bc4 {[%clk 0:00:15]} 33. Nxc4 {[%clk 0:00:23]}  Qxc4 {[%clk 0:00:16]} 34. c6 {[%clk 0:00:23]}  Rbb8 {[%clk 0:00:08]} 35. Ra7 {[%clk 0:00:22]}  Rbc8 {[%clk 0:00:06]} 36. Qd7 {[%clk 0:00:21]}  Qf7 {[%clk 0:00:02]} 37. Rb7 {[%clk 0:00:14]}  Qxd7 {[%clk 0:00:02]} 38. cxd7 {[%clk 0:00:14]}  Rb8 {[%clk 0:00:02]} 39. Rc7 {[%clk 0:00:13]}  Rfd8 {[%clk 0:00:02]} 40. Rd1 {[%clk 0:00:14]}  Bf6 {[%clk 0:00:03]} 41. Rc5 {[%clk 0:00:11]}  Kf7 {[%clk 0:00:03]} 42. Rc6 {[%clk 0:00:11]}  Ke7 {[%clk 0:00:01]} 43. Rdd6 {[%clk 0:00:11]}  Bg5 {[%clk 0:00:01]} 44. Re6+ {[%clk 0:00:11]}  Kxd7 {[%clk 0:00:02]} 45. Rcd6+ {[%clk 0:00:11]}  Kc7 {[%clk 0:00:02]} 46. Rc6+ {[%clk 0:00:11]}  Kb7 {[%clk 0:00:03]} 47. Rc5 {[%clk 0:00:10]}  Rd1# {[%clk 0:00:02]} 0-1


[Site "https://www.chess.com"]

[Event "Titled Tuesday Blitz November 15 Early 2022"]
[White "Deev, Andrei"]
[Black "Mouhamad, Joachim"]
[WhiteFideId "4102690"]
[BlackFideId "656410"]
[WhiteElo "2277"]
[BlackElo "2164"]
[Result "1-0"]
[Round "11"]
[TimeControl "180+1"]
[Date "2022.11.16"]
[WhiteClock "0:00:07"]
[BlackClock "0:00:10"]

1. e4 {[%clk 0:03:00]}  e6 {[%clk 0:02:58]} 2. d4 {[%clk 0:02:59]}  d5 {[%clk 0:02:58]} 3. Nd2 {[%clk 0:03:00]}  c5 {[%clk 0:02:57]} 4. exd5 {[%clk 0:02:59]}  exd5 {[%clk 0:02:55]} 5. Ngf3 {[%clk 0:03:00]}  Nf6 {[%clk 0:02:55]} 6. Be2 {[%clk 0:02:58]}  Nc6 {[%clk 0:02:55]} 7. O-O {[%clk 0:02:57]}  cxd4 {[%clk 0:02:55]} 8. Nb3 {[%clk 0:02:56]}  Bd6 {[%clk 0:02:55]} 9. Nfxd4 {[%clk 0:02:51]}  O-O {[%clk 0:02:54]} 10. c3 {[%clk 0:02:45]}  Re8 {[%clk 0:02:52]} 11. Bg5 {[%clk 0:02:41]}  Ne5 {[%clk 0:02:42]} 12. Bh4 {[%clk 0:02:29]}  h6 {[%clk 0:02:39]} 13. Bg3 {[%clk 0:02:27]}  a6 {[%clk 0:02:37]} 14. Re1 {[%clk 0:02:26]}  Ng6 {[%clk 0:02:32]} 15. Bf3 {[%clk 0:02:14]}  Bxg3 {[%clk 0:02:30]} 16. hxg3 {[%clk 0:02:14]}  Rxe1+ {[%clk 0:02:23]} 17. Qxe1 {[%clk 0:02:13]}  Bg4 {[%clk 0:02:24]} 18. Rd1 {[%clk 0:02:12]}  h5 {[%clk 0:02:20]} 19. Qe2 {[%clk 0:01:52]}  Bxf3 {[%clk 0:02:13]} 20. Qxf3 {[%clk 0:01:47]}  h4 {[%clk 0:02:12]} 21. gxh4 {[%clk 0:01:42]}  Nxh4 {[%clk 0:02:10]} 22. Qg3 {[%clk 0:01:38]}  Ne4 {[%clk 0:02:07]} 23. Qg4 {[%clk 0:01:25]}  Qf6 {[%clk 0:01:56]} 24. f3 {[%clk 0:01:22]}  Nd6 {[%clk 0:01:47]} 25. Ne2 {[%clk 0:01:16]}  Re8 {[%clk 0:01:40]} 26. Ng3 {[%clk 0:01:13]}  Nc4 {[%clk 0:01:31]} 27. Rxd5 {[%clk 0:01:06]}  Nxg2 {[%clk 0:01:01]} 28. Ne4 {[%clk 0:00:38]}  Qb6+ {[%clk 0:00:56]} 29. Nd4 {[%clk 0:00:26]}  Nge3 {[%clk 0:00:56]} 30. Qd7 {[%clk 0:00:21]}  Qg6+ {[%clk 0:00:44]} 31. Rg5 {[%clk 0:00:14]}  Qh6 {[%clk 0:00:16]} 32. Qxe8+ {[%clk 0:00:13]}  Kh7 {[%clk 0:00:17]} 33. Qxf7 {[%clk 0:00:10]}  Ne5 {[%clk 0:00:10]} 34. Rxe5 {[%clk 0:00:07]} 1-0


[Site "https://www.chess.com"]

[Event "Titled Tuesday Blitz November 15 Early 2022"]
[White "Donchenko, Alexander"]
[Black "Postnikov, Daniil"]
[WhiteFideId "24603295"]
[BlackFideId "4166329"]
[WhiteElo "2805"]
[BlackElo "2630"]
[Result "1-0"]
[Round "11"]
[TimeControl "180+1"]
[Date "2022.11.16"]
[WhiteClock "0:00:58"]
[BlackClock "0:00:11"]

1. e4 {[%clk 0:03:00]}  e6 {[%clk 0:02:59]} 2. d4 {[%clk 0:03:00]}  d5 {[%clk 0:02:59]} 3. Nd2 {[%clk 0:03:00]}  c5 {[%clk 0:02:58]} 4. exd5 {[%clk 0:02:59]}  Qxd5 {[%clk 0:02:59]} 5. Ngf3 {[%clk 0:03:00]}  cxd4 {[%clk 0:03:00]} 6. Bc4 {[%clk 0:03:00]}  Qd8 {[%clk 0:03:00]} 7. O-O {[%clk 0:02:59]}  a6 {[%clk 0:03:01]} 8. Nb3 {[%clk 0:02:59]}  Nc6 {[%clk 0:03:02]} 9. Nbxd4 {[%clk 0:02:59]}  Nxd4 {[%clk 0:03:02]} 10. Nxd4 {[%clk 0:02:59]}  Qc7 {[%clk 0:03:02]} 11. Bd3 {[%clk 0:02:57]}  Bd6 {[%clk 0:03:03]} 12. h3 {[%clk 0:02:55]}  Ne7 {[%clk 0:03:03]} 13. c3 {[%clk 0:02:52]}  e5 {[%clk 0:02:51]} 14. Nf3 {[%clk 0:02:46]}  f5 {[%clk 0:02:43]} 15. Bc2 {[%clk 0:02:31]}  Be6 {[%clk 0:02:17]} 16. Ng5 {[%clk 0:02:28]}  Bd5 {[%clk 0:02:16]} 17. Bb3 {[%clk 0:02:25]}  Qc6 {[%clk 0:01:55]} 18. Qh5+ {[%clk 0:01:58]}  g6 {[%clk 0:01:49]} 19. Qh6 {[%clk 0:01:58]}  O-O-O {[%clk 0:01:39]} 20. Rd1 {[%clk 0:01:43]}  Bxb3 {[%clk 0:00:58]} 21. axb3 {[%clk 0:01:42]}  Bc5 {[%clk 0:00:59]} 22. Bd2 {[%clk 0:01:37]}  Qf6 {[%clk 0:00:48]} 23. Nf3 {[%clk 0:01:31]}  f4 {[%clk 0:00:33]} 24. Qg5 {[%clk 0:01:27]}  Qxg5 {[%clk 0:00:32]} 25. Nxg5 {[%clk 0:01:28]}  Rd7 {[%clk 0:00:26]} 26. Be1 {[%clk 0:01:19]}  Rhd8 {[%clk 0:00:24]} 27. Rxd7 {[%clk 0:01:19]}  Rxd7 {[%clk 0:00:25]} 28. Kf1 {[%clk 0:01:17]}  Nf5 {[%clk 0:00:22]} 29. Ne4 {[%clk 0:01:15]}  Bb6 {[%clk 0:00:21]} 30. Ke2 {[%clk 0:01:15]}  h6 {[%clk 0:00:20]} 31. Rd1 {[%clk 0:01:09]}  Rxd1 {[%clk 0:00:17]} 32. Kxd1 {[%clk 0:01:10]}  Kd7 {[%clk 0:00:16]} 33. Ke2 {[%clk 0:01:10]}  Ke6 {[%clk 0:00:16]} 34. b4 {[%clk 0:01:08]}  Kd5 {[%clk 0:00:15]} 35. Kd3 {[%clk 0:01:07]}  Nd6 {[%clk 0:00:12]} 36. c4+ {[%clk 0:01:03]}  Ke6 {[%clk 0:00:08]} 37. Nxd6 {[%clk 0:01:01]}  Kxd6 {[%clk 0:00:07]} 38. c5+ {[%clk 0:01:02]}  Bxc5 {[%clk 0:00:08]} 39. bxc5+ {[%clk 0:01:02]}  Kxc5 {[%clk 0:00:09]} 40. Ke4 {[%clk 0:01:02]}  Kd6 {[%clk 0:00:10]} 41. Bc3 {[%clk 0:01:02]}  Ke6 {[%clk 0:00:10]} 42. Bxe5 {[%clk 0:01:02]}  g5 {[%clk 0:00:11]} 43. Bg7 {[%clk 0:01:02]}  h5 {[%clk 0:00:10]} 44. Bc3 {[%clk 0:01:00]}  f3 {[%clk 0:00:11]} 45. gxf3 {[%clk 0:00:58]} 1-0


[Site "https://www.chess.com"]